Cogmind - Beta 14 @@@ ROGUE MODE // 2024.12.20 @ 17:36:49 Player: LOOTFASTEATASS Result: Destroyed by G-47 Trooper with Particle Gun Performance ------------- Evolutions (2) 1000 Regions Visited (3) 600 Robots Destroyed (39) 195 Value Destroyed (657) 657 Prototype IDs (0) 0 Alien Tech Used (0) 0 Bonus (0) 0 TOTAL SCORE: 2452 Bonus ------- None Cogmind --------- Core Integrity 0/550 Matter 300/300 Energy 100/100 System Corruption 0% Temperature Cool (9) Movement Core (250) Ox4 Location -8/Materials Parts ------- > --- POWER (2) -------- (None) > --- PROPULSION (3) --- (None) > --- UTILITY (4) ------ Small Storage Unit Field Recycling Unit > --- WEAPON (2) ------- (None) > --- INVENTORY (8) ---- Light Ion Engine Small Storage Unit Seismic Detector Peak State ------------ > --- POWER ------------ Light Ion Engine Light Ion Engine > --- PROPULSION ------- Light Treads > --- UTILITY ---------- Small Storage Unit Medium Matter Pod Improved Terrain Scanner Field Recycling Unit > --- WEAPON ----------- Beam Rifle Light Cannon > --- INVENTORY -------- Light Ion Engine Small Storage Unit Seismic Detector [Rating: 13] Favorites ----------- Power Light Ion Engine Engine Light Ion Engine Propulsion Light Treads Treads Light Treads Utility Small Storage Unit Device Field Recycling Unit Storage Small Storage Unit Processor Signal Interpreter Protection Medium Armor Plating Weapon Light Cannon Energy Gun Beam Rifle Ballistic Gun Assault Rifle Ballistic Cannon Light Cannon Launcher Grenade Launcher Build | -11 -10 -9 -8 ------- Run | Yrd Mat Mat Mat Slots Evolved 4 | . . 2 2 Power 1 | . . . 1 Propulsion 1 | . . . 1 Utility 2 | . . 2 . Weapon . | . . . . Parts Attached 22 | 11 2 7 2 Power 3 | 1 . 1 1 Engine 3 | 1 . 1 1 Core . | . . . . Reactor . | . . . . Propulsion 2 | 2 . . . Treads 2 | 2 . . . Leg . | . . . . Wheel . | . . . . Hover . | . . . . Flight . | . . . . Utility 10 | 5 . 4 1 Device 4 | 1 . 2 1 Storage 4 | 4 . . . Processor 1 | . . 1 . Hackware . | . . . . Protection 1 | . . 1 . Artifact . | . . . . Weapon 7 | 3 2 2 . Energy Gun 3 | 2 . 1 . Energy Cannon . | . . . . Ballistic Gun 1 | 1 . . . Ballistic Cannon 2 | . 1 1 . Launcher 1 | . 1 . . Special Weapon . | . . . . Impact Weapon . | . . . . Slashing Weapon . | . . . . Piercing Weapon . | . . . . Special Melee Weapon . | . . . . Unidentified Prototypes . | . . . . Parts Lost 11 | . . 4 7 Power 2 | . . . 2 Propulsion 2 | . . 1 1 Utility 3 | . . 1 2 Weapon 4 | . . 2 2 Highest Loss Streak 7 | . . 3 7 To Critical Strikes . | . . . . Average Slot Usage (%) 85 | . 100 84 57 Engine 11 | . 14 11 9 Treads 18 | . 28 16 4 Device 8 | . . 11 13 Storage 22 | . 28 22 16 Protection 2 | . . 4 . Energy Gun 4 | . 4 4 5 Ballistic Gun 1 | . 5 . . Ballistic Cannon 8 | . 9 8 6 Launcher 5 | . 8 5 . Peak Build Rating 13 | 8 8 11 13 Average Rating 7 | 4 7 9 9 On Entrance 5 | . 7 7 9 Naked Turns . | . . . . Heaviest Build 31 | 14 16 31 28 Greatest Support 40 | 40 40 40 20 Greatest Overweight (x) 4 | . . 1 4 Average Overweight (x) . | . . . 2 Largest Inventory Capacity 8 | 8 8 8 8 Average Capacity 7 | 7 8 8 8 Most Carried 8 | 8 8 8 4 Average Carried 5 | 3 6 5 3 Final Capacity 8 | 8 8 8 8 Final Carried 7 | 7 7 5 3 Class Distribution -------------------- 73% | Mutant 26% | Scavenger-Mutant Dominant Class ---------------- Mutant | -10/Materials Mutant | -9/Materials Scavenger-Mutant | -8/Materials Resources | -11 -10 -9 -8 ----------- Run | Yrd Mat Mat Mat Matter Collected 857 | 421 133 301 2 Remotely . | . . . . Salvage Created 994 | 297 211 413 73 Parts 80 | 23 20 29 8 Haulers Intercepted 1 | . . 1 . Recyclers Shooed 1 | . . 1 . Parts Field Recycled . | . . . . Retrieved Matter . | . . . . Parts Self-Destructed . | . . . . Prevented . | . . . . Kills | -11 -10 -9 -8 ------- Run | Yrd Mat Mat Mat Combat Hostiles Destroyed 19 | . 5 10 4 Guns 6 | . 3 2 1 Cannons 9 | . 1 5 3 AOE 4 | . 1 3 . Classes Destroyed 10 | 3 5 2 . Worker 5 | 4 . 1 . Builder 1 | . 1 . . Tunneler 6 | 6 . . . Hauler 1 | . . 1 . Recycler 3 | 1 1 1 . Operator 1 | . 1 . . Watcher 3 | . 1 2 . Swarmer 9 | . 3 3 3 Grunt 8 | . 2 5 1 Sentry 2 | . . 2 . Best Kill Streak 4 | 3 3 4 4 Combat Bots Only 4 | . 3 3 4 Max Kills in Single Turn 2 | 1 2 1 1 Gunslinging 1 | . 1 . . Exploded 1 | . 1 1 . Melee . | . . . . Uniques/NPCs Destroyed . | . . . . Combat | -11 -10 -9 -8 -------- Run | Yrd Mat Mat Mat Hostile Shots Fired 183 | . 29 73 81 Missed 42 | . 7 22 13 Damage Taken 1927 | . 252 654 1021 Core 721 | . 59 110 552 Absorbed by Shields . | . . . . Core Remaining (%) 82 | 100 76 72 . Volleys Fired 105 | 31 23 40 11 Largest 2 | 2 2 2 2 Hottest 91 | 60 65 91 91 Shots Fired 135 | 38 32 48 17 Gun 66 | 38 8 14 6 Cannon 49 | . 17 21 11 Launcher 20 | . 7 13 . Special . | . . . . Kinetic 60 | 7 21 21 11 Thermal 44 | 24 . 14 6 Explosive 20 | . 7 13 . Electromagnetic 11 | 7 4 . . Robot Hit Streak 11 | 6 5 11 5 Robot Miss Streak 4 | 4 3 4 3 Penetration Max . | . . . . Secondary Targets 1 | . 1 . . Max Gunslinging Chain 1 | . 1 . . Shots Hit Robots 76 | 22 17 28 9 Core Hits 51 | 12 11 22 6 Critical Kills . | . . . . Critical Parts Destroyed . | . . . . Critical Strikes 4 | . . 3 1 Burn 1 | . . 1 . Blast 3 | . . 2 1 Melee Attacks . | . . . . Impact . | . . . . Slashing . | . . . . Piercing . | . . . . Sneak Attacks . | . . . . Combat Hostiles . | . . . . Follow-up Attacks . | . . . . Damage Inflicted 1748 | 268 422 815 243 Guns 486 | 268 59 87 72 Cannons 615 | . 196 248 171 Explosions 647 | . 167 480 . Melee . | . . . . Ramming . | . . . . Kinetic 674 | 22 233 248 171 Thermal 338 | 179 . 87 72 Explosive 647 | . 167 480 . Electromagnetic 89 | 67 22 . . Impact . | . . . . Slashing . | . . . . Piercing . | . . . . Highest Corruption . | . . . . Average Corruption . | . . . . Corruption Purged . | . . . . Corruption Blocked . | . . . . Overload Shots . | . . . . Overflow Damage 6 | . . 6 . Projectiles . | . . . . Explosions 6 | . . 6 . Melee . | . . . . Knockbacks 6 | . . 2 4 Impact . | . . . . Kinetic 5 | . . 2 3 Secondary 1 | . . . 1 Self-Inflicted Damage 39 | . 19 20 . Shots 3 | . 1 2 . Rammed . | . . . . Targets Rammed . | . . . . Kicked . | . . . . Crushed . | . . . . Highest Temperature 318 | . 12 156 318 Average Temperature 72 | . 4 41 180 Received Heat Transfer 792 | . 81 234 477 Siege Activations . | . . . . Robots Corrupted . | . . . . Combat Hostiles . | . . . . Parts Fried . | . . . . Impact Corruptions . | . . . . Robots Melted . | . . . . Combat Hostiles . | . . . . Parts Melted 1 | . . . 1 Heat Transferred 881 | 400 . 296 185 Parts Sabotaged . | . . . . Parts Stolen . | . . . . Parts Stripped . | . . . . Power Chain Reactions . | . . . . Alert | -11 -10 -9 -8 ------- Run | Yrd Mat Mat Mat Peak Influence 346 | 50 219 346 133 Initial 103 | . . 92 103 Average 127 | 19 106 206 108 Maximum Alert Level 1 | . 1 1 . Low Security (%) 73 | 100 80 50 100 Level 1 26 | . 19 49 . Level 2 . | . . . . Level 3 . | . . . . Level 4 . | . . . . Level 5 . | . . . . High Security . | . . . . Max Security . | . . . . Squads Dispatched 2 | . . 1 1 Investigation . | . . . . Extermination . | . . . . Reinforcement 2 | . . 1 1 Assault . | . . . . Garrison . | . . . . Intercept . | . . . . Searches Triggered . | . . . . Construction Impeded . | . . . . Haulers Reinforced . | . . . . Active Scanning Responses . | . . . . Cargo Convoy Interrupts . | . . . . Stealth | -11 -10 -9 -8 --------- Run | Yrd Mat Mat Mat Distress Signals 2 | . 1 1 . Communications Jammed . | . . . . Distress Signals . | . . . . Times Spotted 29 | . 7 15 7 Peak Tracking Total 5 | . 3 4 5 Tactical Retreats . | . . . . Traps | -11 -10 -9 -8 ------- Run | Yrd Mat Mat Mat Traps Triggered . | . . . . Indirectly . | . . . . Trap Hack Attempts . | . . . . Triggered . | . . . . Disarmed . | . . . . Reprogrammed . | . . . . Reused . | . . . . Traps Extracted . | . . . . Installed . | . . . . Triggered . | . . . . Machines | -11 -10 -9 -8 ---------- Run | Yrd Mat Mat Mat Machines Disabled 3 | . 1 2 . Max in Single Turn 1 | . 1 1 . Machines Repaired . | . . . . Machines Dismantled . | . . . . Machines Sabotaged . | . . . . Overloaded Fab Kills . | . . . . Hacking | -11 -10 -9 -8 --------- Run | Yrd Mat Mat Mat Machines Accessed . | . . . . Terminals . | . . . . Fabricators . | . . . . Repair Stations . | . . . . Recycling Units . | . . . . Scanalyzers . | . . . . Garrison Access . | . . . . Total Hacks . | . . . . Successful . | . . . . Failed . | . . . . Catastrophic . | . . . . Database Lockouts . | . . . . Manual . | . . . . Terminals . | . . . . Fabricators . | . . . . Repair Stations . | . . . . Recycling Units . | . . . . Scanalyzers . | . . . . Garrison Access . | . . . . Terminal Hacks . | . . . . Fabricator Hacks . | . . . . Repair Station Hacks . | . . . . Recycling Unit Hacks . | . . . . Scanalyzer . | . . . . Garrison Access Hacks . | . . . . Unauthorized Hacks . | . . . . Terminals . | . . . . Fabricators . | . . . . Repair Stations . | . . . . Recycling Units . | . . . . Scanalyzers . | . . . . Garrison Access . | . . . . Data Cores Recovered . | . . . . Used . | . . . . Hacking Detections . | . . . . Full Trace Events . | . . . . Feedback Events . | . . . . Feedback Blocked . | . . . . Robot Schematics Acquired . | . . . . Robots Built . | . . . . Authchips . | . . . . Time . | . . . . Total Robot Build Rating . | . . . . Part Schematics Acquired . | . . . . Parts Built . | . . . . Authchips . | . . . . Time . | . . . . Total Part Build Rating . | . . . . Parts Repaired . | . . . . Time . | . . . . Parts Recycled . | . . . . Recycled Matter . | . . . . Retrieved Matter . | . . . . Retrieved Components . | . . . . Parts Scanalyzed . | . . . . Part Schematics Acquired . | . . . . Parts Damaged . | . . . . Bothacking | -11 -10 -9 -8 ------------ Run | Yrd Mat Mat Mat Used RIF Installer . | . . . . Robots Hacked . | . . . . Non-combat . | . . . . Combat . | . . . . Robot Hacks Applied . | . . . . Relay Couplers Released . | . . . . Fabnet Peak Effective % . | . . . . Robots Rewired . | . . . . Allies Hacked . | . . . . Hacks Repelled . | . . . . Allies | -11 -10 -9 -8 -------- Run | Yrd Mat Mat Mat Total Allies . | . . . . Largest Group . | . . . . Highest-Rated Group . | . . . . Highest-Rated Ally . | . . . . Total Orders . | . . . . Ally Attacks . | . . . . Total Damage . | . . . . Kills . | . . . . Allies Corrupted . | . . . . Allies Melted . | . . . . Intel | -11 -10 -9 -8 ------- Run | Yrd Mat Mat Mat Robot Analysis Total . | . . . . Derelict Logs Recovered . | . . . . Drone Launches . | . . . . Drone Recoveries . | . . . . Exploration | -11 -10 -9 -8 ------------- Run | Yrd Mat Mat Mat Turns Passed 1426 | 408 263 643 112 Spaces Moved 586 | 153 124 276 33 Core 27 | 16 . . 11 Treads 559 | 137 124 276 22 Legs . | . . . . Wheels . | . . . . Hover . | . . . . Flight . | . . . . Fastest Speed 50 | 50 160 160 240 Average Speed 177 | 148 160 194 243 Slowest Speed 250 | 160 160 240 250 Overloaded Moves . | . . . . Propulsion Burnouts . | . . . . Robots Hopped . | . . . . Cave-ins Triggered . | . . . . Exploration Rate (%) 15 | 6 23 26 5 Regions Visited 3 Branch Regions . Pre-discovered Areas . | . . . . Known Exits Taken . | . . . . Unknown Exits Taken 3 | 1 1 1 . Scrap Searched . | . . . . Spaces Dug 6 | . 6 . . Terrain Destroyed 74 | . 53 21 . Melee . | . . . . Projectile . | . . . . AOE 74 | . 53 21 . Terrain Rammed . | . . . . Walls Destroyed . | . . . . Machines Disabled . | . . . . Actions | -11 -10 -9 -8 --------- Run | Yrd Mat Mat Mat Total 835 | 294 158 335 48 Wait 94 | 83 2 7 2 Move 583 | 152 123 275 33 Hop . | . . . . Pick Up 24 | 16 4 4 . Fast Attach 2 | 2 . . . Attach 13 | 6 . 5 2 Detach 1 | . . 1 . Swap 7 | 3 2 2 . Drop 6 | 1 4 1 . Fire 105 | 31 23 40 11 Melee . | . . . . Ram . | . . . . Kick . | . . . . Crush . | . . . . Escape Stasis . | . . . . Rewire . | . . . . Trap . | . . . . Miscellaneous . | . . . . Route ------- -11/Scrapyard -10/Materials -9/Materials -8/Materials History --------- Turn | Location | Event 119 | -11/Scrapyard | Discovered new exit (range 16) 409 | -11/Scrapyard | Entered Materials 410 | -10/Materials | Build established: Mutant 655 | -10/Materials | Discovered new exit (range 9) 672 | -10/Materials | Entered another Materials area 672 | -9/Materials | Evolved 2 slots: Utility x2 1023 | -9/Materials | Lost 3 parts (1n1u1w) 1279 | -9/Materials | Discovered new exit (range 15) 1308 | -9/Materials | Build established: Scavenger-Mutant 1315 | -9/Materials | Entered another Materials area 1315 | -8/Materials | Evolved 2 slots: Power x1, Propulsion x1 1406 | -8/Materials | Core integrity fell below 50% 1418 | -8/Materials | Core integrity fell below 20% 1427 | -8/Materials | Destroyed by G-47 Trooper with Particle Gun Last Messages --------------- G-47 Trooper suffers critical hit (Blast). G-47 Trooper knocked back. S-10 Pest destroyed. Beam Rifle destroyed. Lgt. Ion Engine destroyed. G-47 Trooper knocked back. G-47 Trooper destroyed. Lgt. Cannon destroyed. Critical hit (Burn: +37). R-06 Scavenger collects Flight Unit. Acquired 2 matter. R-06 Scavenger collects Aluminum Leg. Med. Matter Pod destroyed. R-06 Scavenger collects Lgt. Ion Engine. ALERT: Suspicious intruders detected, dispatching Specialist reinforcements to area. R-06 Scavenger collects Lgt. Assault Rifle. R-06 Scavenger collects Particle Gun. R-06 Scavenger collects Flight Unit. R-06 Scavenger collects Lgt. Nuclear Core. Map ----- +----------------------------------------------------+ | ???????????????????????# #????????????? | | ???????????????????????# #????????????? | | ???????????????????????# #????????????? | | ???????????????????????# #????????????? | | ????????????????#??????# #???????????#? | | ???????????????????????# #?????? ?????? | | ??????????????#????????# #????""??????? | | ???????????????????????# #??""""? ????? | | ????????????????? ?????# # """""?#???? | | ??????????????????????## + """""?????? | | ???????????????????????# # """ ?????? | | ???????????????????????# #?? #???? | | ???????????????????????# #????#####???? | | ???????????????????????# #????????????? | | ??????????????????? ???# #???? ?#???#?? | | ???????????###?#??#????# # T??????????? | | ???????????# [%* ####### +?????????#??? | | ???????????# == =% #????????????? | | ???????????# ^ g #????????????? | | ???????????# ^^% %#????????????? | | ???????????# ###+###%%g#????????????? | | ??????????####?#???????#r %#???#????????? | | ?????????#??? ???##????# #??#?????????? | | ???????????? ??????????# #????????????? | | ?????????????H?????????# ##???????????? | | ???????????????????????# @ #????????????? | | ???????????????????????# #????????????? | | ???????????? ?????????# #???????????? | | ??????????????????????# #???????????? | | ??????????????????????# +?? ????????? | | ??????????????????????# #???????????? | | ?????????????????????## #???????????? | | ?????????????????? ???## ##???????????? | | ???????????????????????# #????????????? | | ???????????????#???????# #????????????? | | ???????????????????????# #????????????? | | ???????????????????????# #?#??????????? | | ???????????????????????# #????????????? | | ???????????????????????? ?????????????? | | ???????????????????????? ?????????????? | | ???????????????????????? ?????????????? | | ????????????????????????????????????????? | | ????????????????????????????????????????? | | ????????????????????????????????????????? | | ????????????????????????????????????????? | | ????????????????????????????????????????? | | ????????????????????????????????????????? | | ????????????????????????????????????????? | | ????????????????????????????????????????? | | ????????????????????????????????????????? | +----------------------------------------------------+ Best States ------------- Heat Dissipation 31 Energy Generation 15 Energy Capacity 150 Matter Stores 400 Matter Capacity 400 Sight Range 16 Terrain Scan Range 16 Terrain Scan Density 10 Armor Coverage 225 Evasion (%) 50 Recoil Reduction 2 Item Schematics ----------------- None Robot Schematics ------------------ None Fabricated ------------ Nothing Alien Tech Used ----------------- None Achievements -------------- None Challenges ------------ None Game ------ Seed CargoShadingTendrils Manual? 0 Play Time 00:15:06 Cumulative 2.1 hours Start 2024.12.20 @ 17:23:02 End 2024.12.20 @ 17:36:49 Sessions 1 Manual Loads 0 Difficulty Rogue Special Mode None Game No. 5 Rogue 1 Adventurer 4 Explorer 0 Win Type - Total 0 Types 0/0/0/0/0/0/0/0/0 Lore% 0 Gallery% 7 Achievement% 5 Wizard Run 0 Options --------- Layout 1 ASCII 0 Keyboard 0 Movement Mouse Keybinds 0 Fullscreen 1 Font 32/SmallcapsGlow Map View 50x35 Zoom Use 0% Tactical HUD 0 Map Filters NONE Filters NONE Steam 1 RUN: b355ef10-9c6e-487b-b997-5ff6ba891034